bitfinex-derivatives/quotes_ETHF0:USTF0_20241023
["timestamp","ask_amount","ask_price","bid_price","bid_amount"]
[1729680070777,4.99513,2583.2,2583.1,1.22234]
[1729680070982,3.2078,2583.2,2583.1,1.22234]
[1729680071179,4.6078,2583.2,2583.1,1.22234]
[1729680071383,4.99512,2583.2,2583.1,1.22234]
[1729680072982,1.78732,2583.2,2583.1,1.22234]
[1729680073985,3.18732,2583.2,2583.1,0.835]
[1729680074183,3.18732,2583.2,2583.1,0.4084]
[1729680074900,3.59772,2583.2,2583.1,0.4084]
[1729680075181,0.96837,2583.1,2582.7,1.3996892]
[1729680075388,1.78738,2582.8,2582.7,1.3996892]
[1729680075789,0.3874,2582.7,2582.6,1.8194992]
[1729680075992,1.7874,2582.7,2582.6,3.12565374]
[1729680076178,0.8001,2582.7,2582.6,0.80721]
[1729680076383,1.7874,2582.7,2582.6,3.22242243]
[1729680076582,1.7874,2582.7,2582.6,5.41726625]
[1729680076783,1.7874,2582.7,2582.6,4.01726625]
[1729680076979,1.7874,2582.7,2582.6,2.32643745]
[1729680077288,1.7874,2582.7,2582.6,2.49802662]
[1729680077493,1.7874,2582.7,2582.6,3.51354629]
[1729680077685,1.7874,2582.7,2582.6,1.43514011]
[1729680077884,1.7874,2582.7,2582.6,0.4198]
[1729680081788,1.7874,2582.7,2582.6,1.82255011]
[1729680082389,1.7874,2582.7,2582.6,7.22527077]
[1729680082598,0.4109,2582.9,2582.8,0.38737]
[1729680082599,1.78739,2582.9,2582.8,0.38737]
[1729680082788,1.78739,2582.9,2582.8,2.07840332]
[1729680082989,1.78739,2582.9,2582.8,3.60136039]
[1729680083190,1.78739,2582.9,2582.8,2.07840332]
[1729680084392,1.78739,2582.9,2582.8,3.09366548]
[1729680084598,1.78739,2582.9,2582.8,1.40263216]
[1729680086699,1.78739,2582.9,2582.8,0.38737]
[1729680088998,0.38739,2582.9,2582.8,0.38737]
[1729680089199,0.38739,2582.9,2582.8,1.40263216]
[1729680089200,1.78739,2582.9,2582.8,1.40263216]
[1729680089998,1.78739,2582.9,2582.8,3.0933071]
[1729680090201,0.38736,2583.1,2583.0,0.38734]
[1729680090406,0.38734,2583.2,2583.1,0.38733]
[1729680090595,1.78734,2583.2,2583.1,0.38733]
[1729680090794,1.78734,2583.2,2583.1,1.17133]
[1729680090997,1.78734,2583.2,2583.1,2.18659216]
[1729680092193,1.4,2583.2,2583.1,2.18659216]
[1729680092503,1.78732,2583.2,2583.1,2.18659216]
[1729680093091,1.4,2583.2,2583.1,2.18659216]
[1729680093500,1.78732,2583.2,2583.1,2.18659216]
[1729680093804,1.78732,2583.2,2583.1,3.87574003]
[1729680094106,1.78732,2583.2,2583.1,2.18659216]
[1729680094297,1.78732,2583.2,2583.1,3.87548421]
[1729680095605,1.78732,2583.2,2583.1,3.87518657]
[1729680095906,1.78732,2583.2,2583.1,2.18659216]
[1729680096502,3.18732,2583.2,2583.1,1.79379216]
[1729680096702,3.18732,2583.2,2583.1,0.77853]
[1729680096904,1.78732,2583.2,2583.1,0.77853]
[1729680098100,1.78732,2583.2,2583.1,0.38733]
[1729680098713,1.78732,2583.2,2583.1,1.40259216]
[1729680101714,1.78732,2583.2,2583.1,0.38733]
[1729680109619,0.38734,2583.1,2583.0,1.40260216]
[1729680109822,3.00554,2583.1,2583.0,0.38734]
[1729680110712,1.7976,2583.1,2583.0,0.38734]
[1729680110913,1.7976,2583.1,2583.0,1.40260216]
[1729680111918,2.18494,2583.1,2583.0,1.40260216]
[1729680112620,2.18494,2583.1,2583.0,4.61040216]
[1729680113123,1.7976,2583.1,2583.0,6.29883057]
[1729680113816,2.18494,2583.1,2583.0,6.29883057]
[1729680114014,2.18494,2583.1,2583.0,3.09103057]
[1729680114223,2.18494,2583.1,2583.0,2.07576841]
[1729680114522,2.18494,2583.1,2583.0,5.28356841]
[1729680114922,2.18494,2583.1,2583.0,2.07576841]
[1729680115123,2.18494,2583.1,2583.0,6.80652548]
[1729680115922,1.7976,2583.1,2583.0,6.80652548]
[1729680116217,0.4036,2583.3,2583.2,0.38732]
[1729680116218,0.79091,2583.3,2583.2,0.38732]
[1729680116413,2.19091,2583.3,2583.2,0.38732]
[1729680116816,2.19091,2583.3,2583.2,0.80732]
[1729680121719,2.19091,2583.3,2583.2,0.38732]
[1729680123527,0.38732,2583.2,2583.1,4.60913693]
[1729680123830,2.19982,2583.2,2583.1,4.60913693]
[1729680124325,2.19982,2583.2,2583.1,4.22181693]
[1729680124532,2.19982,2583.2,2583.1,4.60915693]
[1729680124931,2.19982,2583.2,2583.1,4.22181693]
[1729680125427,3.59982,2583.2,2583.1,3.2078]
[1729680125725,2.19982,2583.2,2583.1,3.2078]
[1729680125926,2.19982,2583.2,2583.1,3.59514]
[1729680126933,2.19982,2583.2,2583.1,3.2078]
[1729680127228,2.19982,2583.2,2583.1,3.59514]
[1729680128128,0.38734,2583.1,2583.0,1.40135693]
[1729680128335,2.17394,2583.1,2583.0,6.30039513]
[1729680128629,2.17394,2583.1,2583.0,1.40229296]
[1729680131232,2.17394,2583.1,2583.0,2.07787094]
[1729680131636,2.17394,2583.1,2583.0,2.07786865]
[1729680132138,2.17394,2583.1,2583.0,2.7057059]
[1729680132338,2.17394,2583.1,2583.0,2.70568359]
[1729680133041,2.17394,2583.1,2583.0,1.69052865]
[1729680133227,2.17394,2583.1,2583.0,2.70582121]
[1729680133630,2.17394,2583.1,2583.0,1.01529256]
[1729680133829,1.7866,2583.1,2582.9,1.01529256]
[1729680134135,2.21165,2583.0,2582.9,1.01529256]
[1729680135325,0.38737,2582.9,2582.8,1.01529256]
[1729680135530,0.38737,2582.9,2582.7,1.40269256]
[1729680135531,0.38738,2582.8,2582.7,1.40269256]
[1729680135731,2.19728,2582.8,2582.7,4.49400864]
[1729680135935,2.19728,2582.8,2582.7,5.00167315]
[1729680137136,1.78738,2582.8,2582.7,5.00167315]
[1729680137538,1.78738,2582.8,2582.7,3.88101608]
[1729680137738,1.78738,2582.8,2582.7,5.40391244]
[1729680138430,1.78738,2582.8,2582.7,4.00391244]
[1729680140332,1.4,2582.9,2582.7,5.01651244]
[1729680140537,0.38737,2582.9,2582.8,5.00063103]
[1729680140734,0.38737,2582.9,2582.8,5.39113103]
[1729680140933,1.78737,2582.9,2582.8,3.99102638]
[1729680141243,1.78737,2582.9,2582.8,5.39102638]
[1729680141737,1.78737,2582.9,2582.8,3.99102638]
[1729680142633,1.78737,2582.9,2582.8,3.48308407]
[1729680142841,1.78737,2582.9,2582.8,1.79283405]
[1729680143030,1.78737,2582.9,2582.8,1.40545405]
[1729680143236,0.38738,2582.8,2582.7,1.40234405]
[1729680143438,2.60678,2582.8,2582.7,3.09259989]
[1729680143837,2.60678,2582.8,2582.7,1.01495405]
[1729680144038,0.3874,2582.7,2582.6,3.2078]
[1729680144336,0.38744,2582.4,2582.3,42.22095405]
[1729680144536,1.78744,2582.4,2582.3,1.01495405]
[1729680144746,1.4,2582.4,2582.3,1.4]
[1729680144933,0.38743,2582.6,2582.5,0.38741]
[1729680145244,4.49825971,2582.4,2582.3,1.40225224]
[1729680145448,1.78744,2582.4,2582.3,1.40225224]
[1729680145940,1.4,2582.4,2582.3,2.80225224]
[1729680146136,2.20324,2582.5,2582.3,2.41479224]
[1729680146336,1.78744,2582.5,2582.4,0.38744]
[1729680146532,1.78744,2582.5,2582.4,2.17904]
[1729680146533,1.4,2582.5,2582.4,2.17904]
[1729680146745,0.38743,2582.6,2582.5,0.38743]
[1729680147050,1.78743,2582.6,2582.5,0.38743]
[1729680149543,0.38743,2582.5,2582.4,2.17903]
[1729680149733,1.78743,2582.5,2582.4,2.17903]
[1729680154943,1.4,2582.5,2582.4,2.17904]
[1729680155452,1.78743,2582.5,2582.4,0.77904]
[1729680157252,1.78743,2582.5,2582.4,2.17904]
[1729680158051,1.78743,2582.5,2582.4,0.77904]
[1729680158250,1.4,2582.5,2582.4,0.77904]
[1729680158743,1.78743,2582.5,2582.4,2.17904]
[1729680159849,1.4,2582.5,2582.4,2.17904]
[1729680160451,1.4,2582.5,2582.4,7.06482229]
[1729680162250,1.4,2582.6,2582.4,6.67738229]
[1729680162450,1.78743,2582.6,2582.5,1.78742]
[1729680162747,1.78743,2582.6,2582.5,0.38742]
[1729680165357,1.78743,2582.6,2582.5,1.40120229]
[1729680165651,1.78743,2582.6,2582.5,0.38742]
[1729680166048,1.78743,2582.6,2582.4,0.3916]
[1729680166049,1.4,2582.6,2582.4,0.3916]
[1729680166249,2.20653,2582.5,2582.4,0.38744]
[1729680166452,0.38744,2582.4,2582.3,1.80963229]
[1729680166652,1.78744,2582.4,2582.3,0.79585]
[1729680166953,1.78744,2582.4,2582.3,2.19585]
[1729680167351,1.78744,2582.4,2582.3,3.20963229]
[1729680168156,0.4191,2582.5,2582.3,2.82218229]
[1729680168353,0.38742,2582.6,2582.5,0.38741]
[1729680168656,1.8236,2582.7,2582.6,0.38741]
[1729680168657,0.81101,2582.7,2582.6,0.38741]
[1729680168953,0.81101,2582.7,2582.6,1.40135579]
[1729680170866,2.21101,2582.7,2582.6,1.40135579]
[1729680171266,2.21101,2582.7,2582.6,3.09043539]
[1729680172068,2.21101,2582.7,2582.6,3.09044139]
[1729680173573,2.21101,2582.7,2582.6,2.0764956]
[1729680173759,2.21101,2582.7,2582.6,3.09089141]
[1729680173960,2.21101,2582.7,2582.6,2.0764956]
[1729680174372,2.21101,2582.7,2582.6,3.59716904]
[1729680174669,2.21101,2582.7,2582.6,2.0764956]
[1729680174861,2.21101,2582.7,2582.6,1.40191797]
[1729680175058,2.21101,2582.7,2582.6,3.09137976]
[1729680176964,3.2078,2583.0,2582.6,4.61013523]
[1729680177156,1.78737,2583.0,2582.9,0.38735]
[1729680177966,1.78737,2583.0,2582.9,1.01451747]
[1729680178160,1.4,2583.0,2582.8,2.80188747]
[1729680178365,1.78737,2582.9,2582.8,2.80183054]
[1729680178563,1.78737,2582.9,2582.8,3.4768444]
[1729680179269,1.78737,2582.9,2582.8,4.99751784]
[1729680179465,1.78737,2582.9,2582.8,3.4768444]
[1729680180869,1.78737,2582.9,2582.8,3.47687121]
[1729680181872,1.78737,2582.9,2582.8,4.99754465]
[1729680182772,1.78737,2582.9,2582.8,3.59754465]
[1729680183070,1.78737,2582.9,2582.8,2.07687121]
[1729680183666,1.78737,2582.9,2582.8,0.38737]
[1729680184573,1.78737,2582.9,2582.8,1.78737]
[1729680184778,1.78737,2582.9,2582.8,3.47650157]
[1729680185268,1.78737,2582.9,2582.8,4.90388909]
[1729680186267,1.78737,2582.9,2582.8,3.50388909]
[1729680188466,1.78737,2582.9,2582.8,3.09068909]
[1729680191478,1.78737,2582.9,2582.8,3.59786091]
[1729680192166,1.78737,2582.9,2582.8,3.09112631]
[1729680192371,1.78737,2582.9,2582.8,3.59786091]
[1729680192972,1.78737,2582.9,2582.8,2.07647857]
[1729680193177,1.78737,2582.9,2582.8,3.59786091]
[1729680194570,1.78737,2582.9,2582.8,3.59943219]
[1729680197078,1.78737,2582.9,2582.8,1.40263171]
[1729680197269,1.78737,2582.9,2582.8,3.09339389]
[1729680197470,1.78737,2582.9,2582.8,1.40263171]
[1729680197880,1.78737,2582.9,2582.8,3.09349632]
[1729680198875,1.78736,2583.1,2583.0,0.38734]
[1729680199378,1.78736,2583.1,2583.0,1.01519857]
[1729680199573,1.4,2583.1,2582.9,1.41359857]
[1729680199778,1.78735,2583.0,2582.9,1.41359857]
[1729680200076,2.20915,2583.0,2582.9,3.10439896]
[1729680200871,2.20915,2583.0,2582.9,2.70599896]
[1729680201076,2.20915,2583.0,2582.9,1.01519857]
[1729680201270,0.38737,2582.9,2582.8,1.01519857]
[1729680201577,1.78737,2582.9,2582.8,2.80257857]
[1729680201972,0.38737,2582.9,2582.8,4.49358405]
[1729680202171,1.4,2583.1,2582.8,4.61238782]
[1729680202371,1.78735,2583.1,2583.0,0.38734]
[1729680202779,1.78735,2583.1,2583.0,2.2355489]
[1729680203171,1.78735,2583.1,2583.0,1.8482089]
[1729680203377,1.78735,2583.1,2583.0,2.2355589]
[1729680204381,1.78735,2583.1,2583.0,1.22025]
[1729680204782,1.78735,2583.1,2583.0,2.2355589]
[1729680205083,1.78735,2583.1,2583.0,1.22025]
[1729680205381,0.38735,2583.0,2582.9,1.4026689]
[1729680205578,1.78735,2583.0,2582.9,1.0153089]
[1729680206181,1.78735,2583.0,2582.9,2.8026789]
[1729680206385,0.38735,2583.0,2582.9,4.9996613]
[1729680206586,1.78735,2583.0,2582.9,4.9996613]
[1729680208486,1.78735,2583.0,2582.9,4.99964215]
[1729680210578,1.78735,2583.0,2582.9,3.59964215]
[1729680210780,1.78735,2583.0,2582.9,3.21227215]
[1729680211484,1.78735,2583.0,2582.9,1.69088981]
[1729680211687,1.78735,2583.0,2582.9,2.70619271]
[1729680212278,0.38737,2582.9,2582.8,1.8189729]
[1729680212587,1.78737,2582.9,2582.8,1.8189729]
[1729680212789,5.272,2582.9,2582.7,1.0153029]
[1729680212975,2.2159,2582.8,2582.7,1.7874]
[1729680213380,6.58270956,2582.8,2582.7,1.7874]
[1729680214389,6.58270956,2582.8,2582.7,2.80277409]
[1729680215386,6.58270956,2582.8,2582.7,1.40277409]
[1729680216284,6.58270956,2582.8,2582.7,3.09372049]
[1729680216688,6.58270956,2582.8,2582.7,1.40277409]
[1729680220191,6.58270956,2582.8,2582.7,3.60136937]
[1729680222593,6.58270956,2582.8,2582.7,3.60143603]
[1729680223490,6.58270956,2582.8,2582.7,3.47837489]
[1729680223491,4.75418956,2582.8,2582.7,3.47837489]
[1729680223687,0.38738,2582.8,2582.7,3.88687489]
[1729680223991,0.38738,2582.9,2582.8,0.38737]
[1729680224194,0.38738,2582.9,2582.8,5.00131517]
[1729680225185,0.38738,2582.9,2582.8,5.40681517]
[1729680226290,1.78738,2582.9,2582.8,5.40681517]
[1729680226693,1.78738,2582.9,2582.8,3.88384489]
[1729680227091,1.78738,2582.9,2582.8,5.4067366]
[1729680227297,1.78738,2582.9,2582.8,4.89911506]
[1729680228386,1.78738,2582.9,2582.8,1.42077017]
[1729680228592,1.78738,2582.9,2582.8,0.4055]
[1729680228996,1.78738,2582.9,2582.8,0.79288]
[1729680229199,1.78738,2582.9,2582.8,1.80815017]
[1729680230605,1.78738,2582.9,2582.8,3.20815017]
[1729680232395,1.78738,2582.9,2582.8,1.42077017]
[1729680232588,1.78738,2582.9,2582.8,1.80815017]
[1729680235394,1.78738,2582.9,2582.8,3.6193125]
[1729680236801,1.78738,2582.9,2582.8,3.61936421]
[1729680240105,1.78738,2582.9,2582.8,4.00674421]
[1729680240308,1.78738,2582.9,2582.8,3.61936421]
[1729680240502,1.78738,2582.9,2582.8,5.40674421]
[1729680240701,1.78738,2582.9,2582.8,5.01936421]
[1729680240903,1.78738,2582.9,2582.8,5.01928349]
[1729680241409,0.38738,2582.9,2582.8,5.40666349]
[1729680242203,0.38736,2583.1,2583.0,0.38734]
[1729680242404,0.38736,2583.1,2583.0,2.80238844]
[1729680242802,0.38736,2583.1,2583.0,3.22148844]
[1729680243809,0.38736,2583.1,2583.0,4.91172401]
[1729680244111,0.38733,2583.2,2583.1,0.38732]
[1729680244403,0.38733,2583.2,2583.1,8.10216997]
[1729680245109,0.38733,2583.2,2583.1,8.10178203]
[1729680245507,0.38733,2583.2,2583.1,6.41233437]
[1729680245805,0.96825,2583.4,2583.3,0.38729]
[1729680245806,0.38731,2583.4,2583.3,0.38729]
[1729680246006,0.38731,2583.4,2583.3,1.78729]
[1729680246516,0.38731,2583.4,2583.3,2.80167909]
[1729680246910,0.38731,2583.4,2583.3,1.78729]
[1729680247311,0.38731,2583.4,2583.3,42.58729]
[1729680248205,1.4,2583.5,2583.3,42.2]
[1729680248406,1.78729,2583.5,2583.4,1.78729]
[1729680248608,1.78729,2583.5,2583.4,2.20599]
[1729680248803,3.2078,2583.7,2583.4,1.8187]
[1729680249016,4.99505,2583.7,2583.6,1.78726]
[1729680249706,0.38726,2583.6,2583.5,2.18627]
[1729680249901,1.78726,2583.6,2583.5,2.18627]
[1729680253312,0.38726,2583.6,2583.5,2.18627]
[1729680253511,4.99506,2583.7,2583.6,0.38726]
[1729680253811,4.99506,2583.7,2583.6,1.78726]
[1729680255104,4.99506,2583.7,2583.6,1.793]
[1729680257713,1.78726,2583.7,2583.6,1.793]
[1729680258309,0.38726,2583.7,2583.6,1.793]
[1729680261312,0.38726,2583.7,2583.6,0.393]
[1729680261313,1.78726,2583.7,2583.6,0.393]
[1729680262113,1.78726,2583.7,2583.6,1.793]
[1729680262315,1.4,2583.7,2583.5,1.799]
[1729680262514,2.18596,2583.9,2583.5,1.799]
[1729680262515,1.78726,2583.6,2583.5,1.799]
[1729680262707,2.21286,2583.6,2583.5,1.799]
[1729680263408,0.38728,2583.5,2583.4,0.8174]
[1729680263620,0.38728,2583.5,2583.4,2.2174]
[1729680272018,0.38728,2583.5,2583.4,2.60469]
[1729680272419,0.38728,2583.5,2583.4,2.2174]
[1729680274321,0.38728,2583.5,2583.4,2.60469]
[1729680277424,0.38728,2583.5,2583.4,2.2174]
[1729680278618,0.38728,2583.5,2583.4,2.60469]
[1729680279329,0.38728,2583.5,2583.4,43.40469]
[1729680282233,0.38728,2583.5,2583.4,44.41625196]
[1729680283125,0.38728,2583.5,2583.4,44.02896196]
[1729680284334,0.38728,2583.5,2583.4,44.41625196]
[1729680285035,0.38728,2583.5,2583.4,46.10427183]
[1729680285437,0.38728,2583.5,2583.4,46.10620458]
[1729680286135,0.38728,2583.5,2583.4,45.09270987]
[1729680287438,0.38728,2583.5,2583.4,46.61010059]
[1729680287637,0.38728,2583.5,2583.4,43.40469]
[1729680290139,0.38728,2583.5,2583.4,44.4185358]
[1729680294632,0.38728,2583.5,2583.4,47.11818719]
[1729680296032,1.78728,2583.5,2583.4,45.71818719]
[1729680296233,0.38728,2583.5,2583.4,47.11818719]
[1729680296836,0.38728,2583.5,2583.4,47.11829814]
[1729680299733,0.38728,2583.5,2583.4,50.4992542]
[1729680300445,0.38727,2583.7,2583.6,0.38725]
[1729680300637,0.38727,2583.7,2583.6,5.00012842]
[1729680300942,1.78727,2583.7,2583.6,1.69048422]
[1729680301138,5.65767,2583.7,2583.6,1.01500835]
[1729680301836,9.94335819,2583.7,2583.6,1.01500835]
[1729680302039,9.94335819,2583.7,2583.4,2.41500835]
[1729680302040,9.55608819,2583.7,2583.4,2.41500835]
[1729680302237,1.78726,2583.6,2583.5,1.01500835]
[1729680302535,5.7775426,2583.6,2583.4,2.41500835]
[1729680302744,0.38728,2583.5,2583.4,2.41500835]
[1729680303043,4.7648226,2583.5,2583.4,2.41500835]
[1729680303233,4.7648226,2583.5,2583.4,2.80229835]
[1729680303433,0.38725,2583.8,2583.7,0.38724]
[1729680303641,0.38725,2583.8,2583.7,1.78724]
[1729680303840,0.38725,2583.8,2583.7,4.49249122]
[1729680304042,0.38725,2583.8,2583.7,4.90609122]
[1729680304537,0.38725,2583.8,2583.7,4.90630146]
[1729680304843,1.78725,2583.8,2583.7,3.11906146]
[1729680305037,2.59995,2583.8,2583.6,1.01487269]
[1729680305237,2.59995,2583.8,2583.5,0.4136]
[1729680305238,5.6913,2583.7,2583.5,0.4136]
[1729680305439,1.78726,2583.6,2583.5,0.4136]
[1729680305646,6.15164685,2583.6,2583.5,0.4136]
[1729680305843,10.02204685,2583.6,2583.5,0.4136]
[1729680306331,0.38728,2583.5,2583.4,2.82737269]
[1729680306532,1.4,2583.5,2583.3,1.44367269]
[1729680306740,4.36438685,2583.6,2583.3,2.84367269]
[1729680306741,3.02199,2583.4,2583.3,2.84367269]
[1729680306940,3.02199,2583.4,2583.3,4.92135455]
[1729680307546,3.02199,2583.4,2583.3,4.92105196]
[1729680307747,3.02199,2583.4,2583.3,4.53374196]
[1729680307950,3.02199,2583.4,2583.3,2.84367269]
[1729680309347,3.02199,2583.4,2583.3,1.44367269]
[1729680309658,3.02199,2583.4,2583.3,5.04113546]
[1729680312153,3.02199,2583.4,2583.3,3.64113546]
[1729680312354,3.02199,2583.4,2583.3,2.84351985]
[1729680313458,0.38729,2583.4,2583.3,7.74095144]
[1729680313661,0.38727,2583.7,2583.6,0.38725]
[1729680313968,0.38727,2583.7,2583.6,3.47634959]
[1729680314168,0.38727,2583.7,2583.6,5.49947351]
[1729680314466,0.38727,2583.7,2583.6,46.71067351]
[1729680314665,0.38725,2583.8,2583.7,0.38722]
[1729680314963,0.38725,2583.8,2583.7,3.47631959]
[1729680315866,0.38725,2583.8,2583.7,7.34671959]
[1729680317957,0.38725,2583.8,2583.7,6.67080407]
[1729680318159,0.38725,2583.8,2583.7,2.80040407]
[1729680324567,0.38725,2583.8,2583.7,1.78722]
[1729680324768,0.38725,2583.8,2583.7,4.99321649]
[1729680325663,0.38723,2583.9,2583.8,0.38721]
[1729680325963,0.38723,2583.9,2583.8,4.48563622]
[1729680327162,0.38723,2583.9,2583.8,2.79941584]
[1729680329070,1.78722,2583.9,2583.8,1.4]
[1729680333967,1.78722,2583.9,2583.8,1.78723]
[1729680334170,0.38722,2583.9,2583.8,1.78723]
[1729680334365,0.38722,2583.9,2583.8,1.4]
[1729680339671,0.38722,2583.9,2583.8,1.78723]
[1729680339872,0.38722,2584.0,2583.9,0.3872]
[1729680340075,0.38722,2584.0,2583.9,2.598]
[1729680340481,0.38722,2584.0,2583.9,43.398]
[1729680340880,1.78722,2584.0,2583.9,43.398]
[1729680341076,1.78722,2584.0,2583.9,43.0108]
[1729680341273,1.78722,2584.0,2583.9,43.39802]
[1729680344180,1.78722,2584.0,2583.9,2.59802]
[1729680344587,1.78722,2584.0,2583.9,1.78722]
[1729680344880,1.78722,2584.0,2583.9,1.4]
[1729680345081,1.78722,2584.0,2583.7,44.4316]
[1729680345082,0.38723,2583.8,2583.7,45.8316]
[1729680345285,1.78723,2583.8,2583.7,3.6316]
[1729680345684,2.18103,2583.8,2583.7,5.0316]
[1729680346183,2.18103,2583.8,2583.7,5.41885]
[1729680346379,2.18103,2583.8,2583.7,5.0316]
[1729680347482,2.18103,2583.8,2583.7,5.41885]
[1729680348188,2.18103,2583.8,2583.7,2.21105]
[1729680348486,0.78103,2583.8,2583.7,5.41885]
[1729680351083,0.78103,2583.8,2583.7,5.0316]
[1729680351387,0.78103,2583.8,2583.7,5.41885]
[1729680351780,0.78103,2583.8,2583.7,2.21105]
[1729680351976,0.78103,2583.8,2583.7,6.43105584]
[1729680352883,0.78103,2583.8,2583.7,8.11631516]
[1729680353083,0.78103,2583.8,2583.7,8.1164817]
[1729680353685,0.78103,2583.8,2583.7,6.43105584]
[1729680354193,0.78103,2583.8,2583.7,8.11648624]
[1729680355096,0.78103,2583.8,2583.7,1.8238]
[1729680355291,0.78103,2583.8,2583.7,2.21105]
[1729680358395,0.38725,2583.7,2583.6,43.00596584]
[1729680358695,0.38725,2583.7,2583.6,43.39376]
[1729680359199,0.38725,2583.7,2583.6,46.09431412]
[1729680360790,0.38725,2583.7,2583.6,46.09436235]
[1729680362191,0.38725,2583.7,2583.6,50.09180944]
[1729680362393,0.38725,2583.7,2583.6,44.69489651]
[1729680362592,0.38725,2583.7,2583.6,46.71802043]
[1729680363397,0.38725,2583.7,2583.6,47.10528043]
[1729680363796,0.38725,2583.7,2583.6,46.71802043]
[1729680364003,0.38725,2583.7,2583.6,47.10528043]
[1729680364498,0.38725,2583.7,2583.6,48.45585054]
[1729680364801,0.38725,2583.7,2583.6,48.45376167]
[1729680365910,1.78725,2583.7,2583.6,43.29316722]
[1729680366096,1.78725,2583.7,2583.6,44.4182882]
[1729680366296,1.78725,2583.7,2583.6,3.11139393]
[1729680366492,1.78725,2583.7,2583.6,2.09786722]
[1729680366698,1.78725,2583.7,2583.6,3.11137486]
[1729680366901,1.78725,2583.7,2583.6,2.09786722]
[1729680367094,1.78725,2583.7,2583.6,3.11136546]
[1729680367400,1.78725,2583.7,2583.6,4.89862546]
[1729680367603,1.78725,2583.7,2583.6,4.51136546]
[1729680368400,1.78725,2583.7,2583.6,3.11136546]
[1729680368598,1.78725,2583.7,2583.6,2.09744675]
[1729680368997,1.78725,2583.7,2583.6,1.68624675]
[1729680369206,1.78725,2583.7,2583.6,2.69935314]
[1729680369595,1.78725,2583.7,2583.6,2.69919112]
[1729680369999,1.78725,2583.7,2583.6,1.01310639]
[1729680370200,1.78725,2583.7,2583.4,1.52042098]
[1729680370201,0.38728,2583.5,2583.4,1.52042098]
[1729680370509,0.38729,2583.4,2583.3,44.52762098]
[1729680370704,0.38729,2583.4,2583.3,46.21395797]
[1729680370899,0.38729,2583.4,2583.3,44.69353699]
[1729680371100,0.38729,2583.4,2583.3,43.0072]
[1729680371300,1.78729,2583.4,2583.3,43.0072]
[1729680371504,1.78729,2583.4,2583.3,42.5937]
[1729680372301,5.65849,2583.4,2583.3,1.7937]
[1729680375416,5.65849,2583.4,2583.3,1.4]
[1729680376112,5.65849,2583.4,2583.2,42.2]
[1729680376113,0.38731,2583.3,2583.2,42.2]
[1729680376418,1.78731,2583.3,2583.2,42.2]
[1729680377011,1.78731,2583.3,2583.2,42.58732]
[1729680378110,1.78731,2583.3,2583.2,42.2]
[1729680383025,1.78731,2583.3,2583.2,42.58732]
[1729680384323,0.38731,2583.3,2583.2,42.58732]
[1729680384623,1.78731,2583.3,2583.2,42.58732]
[1729680386921,1.78731,2583.3,2583.2,42.2]
[1729680390519,1.78731,2583.3,2583.2,42.58732]
[1729680391119,0.38731,2583.3,2583.2,42.58732]
[1729680392326,0.38731,2583.3,2583.2,42.2]
[1729680392526,0.38731,2583.3,2583.2,42.58732]
[1729680393122,0.38731,2583.3,2583.2,42.2]
[1729680394526,0.38731,2583.3,2583.2,42.58732]
[1729680394727,3.2078,2584.0,2583.2,46.0712]
[1729680394929,1.4,2583.8,2583.7,1.4]
[1729680395135,4.51058271,2583.9,2583.8,0.3939]
[1729680395322,0.38722,2583.9,2583.8,0.3939]
[1729680395727,6.2182096,2583.9,2583.8,0.3939]
[1729680399536,0.38725,2583.7,2583.6,2.2133]
[1729680399737,1.78725,2583.7,2583.6,2.2133]
[1729680403139,1.78725,2583.7,2583.6,2.60056]
[1729680404435,1.78725,2583.7,2583.6,2.2133]
[1729680404633,1.78725,2583.7,2583.6,2.60056]
[1729680408445,1.78725,2583.7,2583.6,2.2133]
[1729680409140,1.78725,2583.7,2583.6,0.8133]
[1729680409446,1.78725,2583.7,2583.6,0.4264]
[1729680409650,0.38728,2583.5,2583.4,1.8285]
[1729680409938,0.38728,2583.5,2583.4,2.21579]
[1729680411842,0.38728,2583.5,2583.4,0.4285]
[1729680412143,0.38728,2583.5,2583.4,2.21579]
[1729680413442,0.38728,2583.5,2583.4,1.8285]
[1729680415335,0.38728,2583.5,2583.4,3.51182126]
[1729680415537,1.78728,2583.5,2583.4,2.11182126]
[1729680417049,1.78728,2583.5,2583.4,0.4285]
[1729680417241,0.38731,2583.3,2583.2,1.52005059]
[1729680417446,0.38732,2583.2,2583.1,2.17604]
[1729680417837,0.38732,2583.2,2583.1,0.3887]
[1729680418047,1.78732,2583.2,2583.1,0.3887]
[1729680418440,0.38732,2583.2,2583.1,2.17604]
[1729680418643,1.78732,2583.2,2583.1,2.17604]
[1729680419245,1.78732,2583.2,2583.1,3.85972258]
[1729680421443,4.0289,2583.6,2583.1,3.47238258]
[1729680421647,4.41616,2583.6,2583.5,1.4]
[1729680421848,5.81616,2583.6,2583.5,1.4]
[1729680422150,0.38728,2583.5,2583.4,1.4]
[1729680422351,0.38728,2583.5,2583.4,2.2225]
[1729680422352,1.78728,2583.5,2583.4,2.2225]
[1729680422849,1.78728,2583.5,2583.4,2.6304]
[1729680423448,1.78728,2583.5,2583.4,1.2304]
[1729680423645,1.78728,2583.5,2583.4,0.3961]
[1729680423946,1.8279,2583.5,2583.1,2.2173]
[1729680424142,0.38731,2583.3,2583.2,0.3961]
[1729680424344,1.78731,2583.3,2583.2,1.7961]
[1729680428349,0.38731,2583.3,2583.2,2.18342]
[1729680428652,0.38731,2583.4,2583.3,0.38729]
[1729680428856,0.38731,2583.4,2583.3,4.99095504]
[1729680429059,0.38731,2583.4,2583.3,3.47090445]
[1729680429447,0.38731,2583.4,2583.3,1.78729]
[1729680433848,0.38731,2583.4,2583.3,1.4]
[1729680434049,0.38731,2583.4,2583.3,1.78731]
[1729680434450,0.38731,2583.4,2583.3,1.4]